bitfinex/quotes_BTCUSD_20251201
["timestamp","ask_amount","ask_price","bid_price","bid_amount"]
[1764605398218,0.01573,84340.0,84327.0,0.01185859]
[1764605398384,0.323,84345.0,84331.0,0.01185803]
[1764605398587,0.00039113,84345.0,84336.0,0.01185733]
[1764605398806,0.00039113,84345.0,84344.0,0.06647]
[1764605399020,0.00039113,84345.0,84342.0,0.00026414]
[1764605399383,0.00039113,84345.0,84343.0,0.03591861]
[1764605399589,0.00039113,84345.0,84344.0,0.23712415]
[1764605399986,0.00039113,84345.0,84343.0,0.23712595]
[1764605400182,0.00039113,84345.0,84342.0,0.00026414]
[1764605400628,0.0495,84343.0,84342.0,0.00026414]
[1764605400827,0.29810699,84343.0,84342.0,0.00026414]
[1764605401068,0.28711696,84343.0,84342.0,0.00026414]
[1764605401191,2.61011696,84343.0,84342.0,0.00026414]
[1764605401383,2.64642156,84343.0,84342.0,0.00026414]
[1764605401803,0.3725,84343.0,84342.0,0.00026414]
[1764605402043,0.00039113,84345.0,84336.0,0.01185733]
[1764605402400,0.00039113,84345.0,84343.0,0.23712696]
[1764605402564,0.00039113,84345.0,84344.0,0.03082803]
[1764605402803,0.00039113,84345.0,84344.0,0.16454]
[1764605403320,0.00039113,84345.0,84343.0,0.2371257]
[1764605403774,0.00039113,84345.0,84344.0,0.16454]
[1764605403950,0.00039113,84345.0,84344.0,0.16554]
[1764605404324,0.00039113,84345.0,84344.0,0.16454]
[1764605404593,0.00039113,84345.0,84344.0,0.29124695]
[1764605404903,0.00039113,84345.0,84344.0,0.35376994]
[1764605405083,0.00039113,84345.0,84344.0,0.34228895]
[1764605405581,0.00039113,84345.0,84344.0,0.35376994]
[1764605406267,0.00039113,84345.0,84344.0,0.35476994]
[1764605406616,0.00039113,84345.0,84344.0,0.35376994]
[1764605406953,0.00039113,84345.0,84344.0,0.35476994]
[1764605407288,0.00039113,84345.0,84344.0,0.35376994]
[1764605407734,0.00039113,84345.0,84344.0,0.35476994]
[1764605407933,0.00039113,84345.0,84344.0,0.29224695]
[1764605408257,0.00039113,84345.0,84344.0,0.27234596]
[1764605408951,0.00039113,84345.0,84344.0,0.28282695]
[1764605409313,0.00039113,84345.0,84344.0,0.34634994]
[1764605409727,0.323,84379.0,84375.0,0.01185185]
[1764605410003,0.323,84379.0,84372.0,0.01185227]
[1764605410004,0.323,84379.0,84374.0,0.01185199]
[1764605410203,0.323,84389.0,84378.0,0.01185143]
[1764605410389,0.04449,84390.0,84380.0,0.23702242]
[1764605410539,1.27516777,84400.0,84381.0,0.011851]
[1764605410540,0.04449,84397.0,84381.0,0.011851]
[1764605410754,0.04449,84397.0,84378.0,0.16545616]
[1764605410755,0.00011736,84397.0,84395.0,0.23698033]
[1764605412012,0.00011736,84397.0,84396.0,0.16454]
[1764605412724,1.24205442,84420.0,84396.0,0.16454]
[1764605412725,1.04684186,84430.0,84396.0,0.17602099]
[1764605412945,0.00039105,84430.0,84427.0,0.01184455]
[1764605413162,0.00039105,84430.0,84424.0,0.01184497]
[1764605413163,0.00039105,84430.0,84429.0,0.04744]
[1764605413363,0.00039105,84430.0,84419.0,0.28435074]
[1764605413584,0.00039105,84430.0,84427.0,0.01184455]
[1764605413820,0.00039105,84430.0,84428.0,0.23688823]
[1764605414010,0.00139105,84430.0,84429.0,0.16454]
[1764605414967,0.00139105,84430.0,84429.0,0.28344819]
[1764605415175,0.00039105,84430.0,84429.0,0.39867415]
[1764605415371,0.00039105,84430.0,84429.0,0.41015514]
[1764605415785,0.00039105,84430.0,84429.0,0.47267813]
[1764605416554,0.00039105,84430.0,84429.0,0.47367813]
[1764605416833,0.00039105,84430.0,84429.0,0.47267813]
[1764605417286,0.00039105,84430.0,84429.0,0.47367813]
[1764605418021,0.00039105,84430.0,84429.0,0.46219714]
[1764605418219,0.00039105,84430.0,84429.0,0.47367813]
[1764605418655,0.00039105,84430.0,84429.0,0.47267813]
[1764605418851,0.00039105,84430.0,84429.0,0.47367813]
[1764605419579,0.00039105,84430.0,84429.0,0.16554]
[1764605420013,0.00039105,84430.0,84429.0,0.23954398]
[1764605420414,0.00191206,84450.0,84429.0,0.23954398]
[1764605420415,0.00191206,84450.0,84447.0,0.01184174]
[1764605420621,0.00191206,84450.0,84449.0,0.35073932]
[1764605420622,0.00202937,84450.0,84449.0,0.35073932]
[1764605421088,0.00202937,84450.0,84449.0,0.46029031]
[1764605421315,0.00202937,84450.0,84449.0,0.57551627]
[1764605421516,0.00202937,84450.0,84449.0,0.32720596]
[1764605421727,0.00202937,84450.0,84443.0,0.04744]
[1764605421926,0.00202937,84450.0,84440.0,0.01184272]
[1764605422077,0.00202937,84450.0,84431.0,0.01184399]
[1764605422078,0.01387069,84450.0,84428.0,0.019]
[1764605422283,0.01387069,84450.0,84425.0,0.10991483]
[1764605422284,0.01184174,84447.0,84429.0,0.01184427]
[1764605422495,0.01148003,84447.0,84433.0,0.23687301]
[1764605422766,0.323,84448.0,84432.0,0.01184385]
[1764605422970,0.3348416,84448.0,84432.0,0.01184385]
[1764605423172,0.01184174,84447.0,84430.0,0.26208467]
[1764605423371,0.3348416,84448.0,84430.0,0.26208467]
[1764605423372,0.3725,84448.0,84433.0,0.2487166]
[1764605423488,0.01148003,84447.0,84434.0,0.01184357]
[1764605423899,1.24408379,84450.0,84449.0,0.06252299]
[1764605423900,0.00202937,84450.0,84449.0,0.06252299]
[1764605424101,0.00202937,84450.0,84449.0,0.21438556]
[1764605424249,0.00202937,84450.0,84449.0,0.30760556]
[1764605424445,0.0004,84470.0,84449.0,0.30760556]
[1764605424446,0.0004,84470.0,84459.0,0.23680128]
[1764605424656,0.0004,84470.0,84459.0,0.40817427]
[1764605424853,0.0004,84470.0,84459.0,0.50139427]
[1764605425098,0.00072949,84460.0,84459.0,0.60126298]
[1764605425696,0.00072949,84460.0,84459.0,0.61274397]
[1764605426003,0.00072949,84460.0,84459.0,0.60226298]
[1764605426367,0.00072949,84460.0,84459.0,0.04555]
[1764605426571,0.00072949,84460.0,84459.0,0.001]
[1764605427876,0.00072949,84460.0,84458.0,0.23680312]
[1764605428090,0.0004,84460.0,84458.0,0.23680312]
[1764605428301,0.0004,84460.0,84459.0,0.001]
[1764605428520,0.0004,84460.0,84459.0,0.00111731]
[1764605428735,0.0004,84460.0,84459.0,0.00011731]
[1764605429848,0.00089,84460.0,84459.0,0.00011731]
[1764605430117,0.01188003,84460.0,84459.0,0.00011731]
[1764605430332,0.0004,84460.0,84459.0,0.00011731]
[1764605430576,0.0004,84460.0,84451.0,0.01184118]
[1764605430802,0.0005172,84460.0,84452.0,0.02605106]
[1764605431033,0.0005172,84460.0,84449.0,0.2486693]
[1764605431268,0.323,84459.0,84450.0,0.01184132]
[1764605431502,0.323,84459.0,84450.0,0.24866784]
[1764605431722,0.323,84459.0,84441.0,0.28204135]
[1764605431723,0.09399,84451.0,84424.0,0.09529]
[1764605431891,0.09399,84451.0,84437.0,0.01184314]
[1764605431892,0.04449,84451.0,84437.0,0.01184314]
[1764605432072,0.323,84459.0,84448.0,0.23683213]
[1764605432272,0.323,84459.0,84441.0,0.01184258]
[1764605432443,0.04449,84442.0,84432.0,0.01184385]
[1764605432648,0.04449,84442.0,84437.0,0.24870571]
[1764605432859,0.04449,84442.0,84439.0,0.23685546]
[1764605433055,0.04449,84442.0,84438.0,0.24870251]
[1764605433263,0.04449,84442.0,84439.0,0.01184286]
[1764605433479,0.04449,84447.0,84444.0,0.24868549]
[1764605433686,0.04449,84447.0,84439.0,0.24869941]
[1764605434090,0.04449,84447.0,84440.0,0.01184272]
[1764605434292,0.04449,84447.0,84441.0,0.01184258]
[1764605434582,0.04449,84447.0,84437.0,0.04519]
[1764605434815,0.04449,84447.0,82805.0,0.0849208]
[1764605434816,0.323,84428.0,84407.0,0.04519]
[1764605435012,0.323,84445.0,84393.0,0.09529]
[1764605435013,0.73968939,84417.0,84403.0,0.01184792]
[1764605435310,0.73968939,84417.0,84401.0,0.0118482]
[1764605435311,0.323,84416.0,84401.0,0.23696314]
[1764605435473,0.323,84416.0,84399.0,0.05975848]
[1764605435474,0.323,84416.0,84402.0,0.01184806]
[1764605435676,0.323,84416.0,84407.0,0.01184735]
[1764605435888,0.323,84416.0,84410.0,0.01184693]
[1764605436134,0.03732,84418.0,84414.0,0.01184637]
[1764605436334,0.03732,84418.0,84410.0,0.24878538]
[1764605436657,0.03732,84418.0,84414.0,0.01184637]
[1764605436804,0.03732,84418.0,84413.0,0.24877627]
[1764605436999,0.03732,84418.0,84413.0,0.01184651]
[1764605437256,0.2982307,84429.0,84410.0,0.06282907]
[1764605437257,0.019,84438.0,84426.0,0.23689281]
[1764605437416,0.24868311,84445.0,84427.0,0.02724281]
[1764605437417,0.63868939,84440.0,84427.0,0.02724281]
[1764605437619,0.63868939,84440.0,84426.0,0.24873795]
[1764605437814,0.323,84439.0,84425.0,0.01184483]
[1764605438038,0.323,84439.0,84426.0,0.01184469]
[1764605438039,0.01148003,84436.0,84426.0,0.01184469]
[1764605438316,0.01148003,84436.0,84428.0,0.01184441]
[1764605438516,0.33448003,84439.0,84430.0,0.23688223]
[1764605438719,0.323,84439.0,84432.0,0.01184385]
[1764605439015,0.04449,84447.0,84432.0,0.01184385]
[1764605439238,0.323,84441.0,84429.0,0.01184427]
[1764605439616,0.323,84441.0,84431.0,0.01184399]
[1764605439852,0.01148003,84440.0,84432.0,0.01184385]
[1764605440009,0.73968939,84442.0,84432.0,0.01184385]
[1764605440213,0.73968939,84442.0,84434.0,0.01184357]
[1764605440509,0.73968939,84442.0,84420.0,0.01184553]
[1764605440745,0.73968939,84442.0,84398.0,0.51912946]
[1764605440746,0.73968939,84442.0,84430.0,0.24872649]
[1764605440947,0.323,84441.0,84431.0,0.01184399]
[1764605441142,0.323,84441.0,84431.0,0.2487231]
[1764605441351,0.323,84441.0,84434.0,0.01184357]
[1764605441352,0.32311716,84441.0,84434.0,0.01184357]
[1764605441553,0.32311716,84441.0,84435.0,0.01184342]
[1764605441913,0.32311716,84441.0,84436.0,0.01184328]
[1764605442110,0.00011716,84441.0,84431.0,0.23687777]
[1764605442315,0.00011716,84441.0,84432.0,0.02605665]
[1764605442516,0.32311716,84441.0,84431.0,0.23687777]
[1764605442731,0.02495817,84440.0,84431.0,0.01184399]
[1764605443150,0.02495817,84440.0,84428.0,0.01184441]
[1764605443384,0.01148003,84437.0,84428.0,0.01184441]
[1764605443510,0.07445817,84440.0,84428.0,0.01184441]
[1764605443729,0.07445817,84440.0,84429.0,0.01184427]
[1764605443939,0.323,84439.0,84429.0,0.24872953]
[1764605444143,0.323,84439.0,84433.0,0.01184371]
[1764605444768,0.323,84439.0,84431.0,0.01184399]
[1764605445087,0.00011716,84441.0,84424.0,0.019]
[1764605445429,0.00011716,84441.0,84400.0,0.74183637]
[1764605445430,0.01184567,84419.0,84400.0,0.00214698]
[1764605445626,0.323,84420.0,84400.0,0.00214698]
[1764605445627,0.33484707,84409.0,84400.0,0.00214698]
[1764605445840,0.3608,84401.0,84400.0,0.00214698]
[1764605445992,0.37228003,84401.0,84400.0,0.00214698]
[1764605446224,0.4462462,84401.0,84400.0,0.00214698]
[1764605446404,0.42129003,84401.0,84400.0,0.00214698]
[1764605446805,0.09829003,84401.0,84400.0,0.00253803]
[1764605447254,0.04928003,84401.0,84400.0,0.00253803]
[1764605447842,0.09829003,84401.0,84400.0,0.00253803]
[1764605448053,0.12320946,84401.0,84400.0,0.00253803]
[1764605449372,0.08681,84401.0,84400.0,0.00253803]
[1764605449574,0.09829003,84401.0,84400.0,0.00253803]
[1764605449871,0.09829003,84401.0,84400.0,0.00232803]
[1764605452440,0.03731,84401.0,84400.0,0.00232803]
[1764605453399,0.06085651,84413.0,84400.0,0.00232803]
[1764605453400,0.03731,84406.0,84400.0,0.00232803]
[1764605453597,0.02484775,84419.0,84406.0,0.01184749]
[1764605453772,0.03935,84421.0,84411.0,0.01184679]
[1764605453973,0.03935,84421.0,84410.0,0.24878568]
[1764605454181,0.03935,84421.0,84404.0,0.01184777]
[1764605454378,0.323,84419.0,84402.0,0.01184806]
[1764605454599,0.03935,84421.0,84414.0,0.01184637]
[1764605454751,0.03935,84421.0,84412.0,0.23693094]
[1764605454950,0.02485826,84429.0,84414.0,0.23692684]
[1764605455150,0.02485826,84429.0,84420.0,0.01184553]
[1764605455407,0.03684,84433.0,84422.0,0.01184525]
[1764605455651,0.01858442,84439.0,84430.0,0.01184413]
[1764605455928,0.01148003,84449.0,84433.0,0.01184371]
[1764605456074,0.35936205,84449.0,84434.0,0.01184357]
[1764605456269,0.35936205,84449.0,84432.0,0.24872054]
[1764605456270,0.02489678,84448.0,84432.0,0.24872054]
[1764605456524,0.03673838,84448.0,84432.0,0.24872054]
[1764605456727,0.01184188,84446.0,84429.0,0.24872819]
[1764605456889,0.61616742,84447.0,84430.0,0.01358325]
[1764605456890,0.36760718,84447.0,84430.0,0.01358325]
[1764605457076,0.04560718,84447.0,84432.0,0.21546187]
[1764605457277,0.01148003,84444.0,84434.0,0.01184357]
[1764605457481,0.01148003,84444.0,84433.0,0.23687267]
[1764605457686,0.01148003,84444.0,84433.0,0.24871642]
[1764605457952,0.01148003,84444.0,84442.0,0.23684808]
[1764605458137,0.00011718,84447.0,84446.0,0.23683774]
[1764605458801,0.00011718,84447.0,84444.0,0.01184216]
[1764605458802,0.00011718,84447.0,84444.0,0.23684335]
[1764605459097,0.01148003,84446.0,84445.0,0.23683892]
[1764605459313,0.01148003,84446.0,84441.0,0.23685075]
[1764605459464,0.01148003,84446.0,84439.0,0.01184286]
[1764605459665,0.01148003,84446.0,84440.0,0.236854]
[1764605459984,0.01148003,84446.0,84439.0,0.01184286]
[1764605460306,0.00011718,84447.0,84433.0,0.01184371]
[1764605460544,0.01148003,84440.0,84437.0,0.24870556]
[1764605460716,0.01148003,84440.0,84438.0,0.23685963]
[1764605461021,0.00011718,84447.0,84438.0,0.23685963]
[1764605461022,0.00011718,84447.0,84446.0,0.23683774]
[1764605461250,0.00011718,84447.0,84446.0,0.30020774]
[1764605461434,0.00011718,84447.0,84446.0,0.6592866]
[1764605461827,0.0004,84470.0,84446.0,0.6597066]
[1764605462005,0.0004,84470.0,84459.0,0.46375947]
[1764605462205,0.0004,84470.0,84459.0,0.42637427]
[1764605462416,0.0004,84470.0,84459.0,0.64317246]
[1764605462631,0.0004,84470.0,84459.0,0.75839842]
[1764605462830,0.02495086,84489.0,84459.0,0.75839842]
[1764605462831,0.00119791,84493.0,84483.0,0.0118367]
[1764605463020,0.00131514,84493.0,84482.0,0.01183684]
[1764605463214,0.67829975,84492.0,84474.0,0.0495]
[1764605463472,0.67829975,84492.0,84478.0,0.0118374]
[1764605463670,0.00011723,84493.0,84480.0,0.01183712]
[1764605463671,0.67829975,84490.0,84480.0,0.01183712]
[1764605463881,0.00011723,84493.0,84479.0,0.23674522]
[1764605464023,0.01183586,84489.0,84467.0,0.0495]
[1764605464222,0.323,84489.0,84477.0,0.01183754]
[1764605464431,0.01148003,84487.0,84483.0,0.0118367]
[1764605464649,0.00011723,84493.0,84480.0,0.01183712]
[1764605464849,0.00011723,84493.0,84478.0,0.23674614]
[1764605465161,0.01148003,84492.0,84481.0,0.01183698]
[1764605465363,0.00011723,84493.0,84482.0,0.04024601]
[1764605465545,0.00011723,84493.0,84482.0,0.02840917]
[1764605465749,0.00011723,84493.0,84482.0,0.04024601]
[1764605465947,0.00011723,84493.0,84482.0,0.02840917]
[1764605466152,0.00011723,84493.0,84482.0,0.04024601]
[1764605466401,0.00011723,84493.0,84486.0,0.23672472]
[1764605466610,0.00011723,84493.0,84482.0,0.04024601]
[1764605466849,0.00011723,84493.0,84483.0,0.23673316]
[1764605467162,0.00011723,84493.0,84482.0,0.02840917]
[1764605467368,0.00011723,84493.0,84478.0,0.0118374]
[1764605467369,0.01159726,84493.0,84479.0,0.01183726]
[1764605467570,0.323,84491.0,84482.0,0.01183684]
[1764605467715,0.323,84491.0,84478.0,0.0118374]
[1764605467915,0.323,84491.0,84482.0,0.01183684]
[1764605468363,0.323,84491.0,84484.0,0.01183656]
[1764605468593,0.00011723,84493.0,84484.0,0.02840862]
[1764605468863,0.01159726,84493.0,84482.0,0.01183684]
[1764605469167,0.01159726,84493.0,84488.0,0.011836]
[1764605469382,0.00011723,84493.0,84491.0,0.23670905]
[1764605469667,0.00011723,84493.0,84492.0,0.13675139]
[1764605469830,0.00011723,84493.0,84492.0,0.16126]
[1764605471927,0.00011723,84493.0,84492.0,0.001]
[1764605473369,0.33509726,84493.0,84492.0,0.001]
[1764605473565,0.38422726,84493.0,84492.0,0.001]
[1764605473805,0.38422726,84493.0,84481.0,0.01896]
[1764605474002,0.38422726,84493.0,84478.0,0.0495]
[1764605474003,0.38422726,84493.0,84482.0,0.01183684]
[1764605474322,0.323,84490.0,84482.0,0.01183684]
[1764605474539,0.323,84490.0,84478.0,0.0495]
[1764605474758,0.323,84490.0,84450.0,0.67858792]
[1764605474759,0.323,84482.0,84466.0,0.2486204]
[1764605474963,0.23672708,84486.0,84466.0,0.2486204]
[1764605474964,0.323,84486.0,84471.0,0.23676568]
[1764605475172,0.03943,84489.0,84467.0,0.06133894]
[1764605475173,0.33483656,84484.0,84467.0,0.29811219]
[1764605475364,0.323,84478.0,84462.0,0.29813136]
[1764605475565,0.23674651,84479.0,84465.0,0.01183922]
[1764605475566,0.323,84479.0,84465.0,0.01183922]
[1764605475767,0.323,84479.0,84464.0,0.01183936]
[1764605475964,0.323,84479.0,84462.0,0.07680328]
[1764605476197,0.323,84479.0,84467.0,0.24861765]
[1764605476620,0.323,84479.0,84468.0,0.0118388]
[1764605476941,0.323,84479.0,84468.0,0.05519406]
[1764605477142,0.33483726,84479.0,84464.0,0.01183936]
[1764605477344,0.323,84479.0,84466.0,0.24861992]
[1764605477584,0.323,84479.0,84469.0,0.01183866]
[1764605477790,0.01148003,84482.0,84473.0,0.0118381]
[1764605478194,0.01148003,84482.0,84470.0,0.2486082]
[1764605478195,0.01148003,84482.0,84470.0,0.01183852]
[1764605478394,0.01148003,84482.0,84470.0,0.24860634]
[1764605478807,0.01148003,84482.0,84469.0,0.01183866]
[1764605479016,0.323,84485.0,84461.0,0.01896]
[1764605479017,0.323,84477.0,84461.0,0.01896]
[1764605479214,0.323,84471.0,84461.0,0.01896]
[1764605479427,0.323,84471.0,84447.0,0.09789]
[1764605479428,0.37301,84462.0,84446.0,0.0495]
[1764605479633,0.04405,84451.0,84446.0,0.06846]
[1764605479844,0.04405,84451.0,84448.0,0.0118416]
[1764605480052,0.04405,84451.0,84450.0,0.23711469]
[1764605480269,0.01148003,84456.0,84454.0,0.01184076]
[1764605480471,0.01047,84457.0,84454.0,0.24865347]
[1764605480693,0.01047,84457.0,84456.0,0.23680969]
[1764605480893,0.01047,84462.0,84458.0,0.0118402]
[1764605481104,0.323,84469.0,84468.0,0.28627605]
[1764605481578,0.01148003,84482.0,84470.0,0.24860849]
[1764605481774,0.01159728,84482.0,84473.0,0.0118381]
[1764605482004,0.01159728,84482.0,84476.0,0.01183768]
[1764605482005,0.00011725,84482.0,84476.0,0.01183768]
[1764605482214,0.00011725,84482.0,84474.0,0.01183796]
[1764605482425,0.00011725,84482.0,84471.0,0.01183838]
[1764605482628,0.01148003,84480.0,84472.0,0.01183824]
[1764605483048,0.00049,84473.0,84460.0,0.0495]
[1764605483269,0.00049,84473.0,84464.0,0.23678712]
[1764605483475,0.00049,84473.0,84459.0,0.01184006]
[1764605483476,0.00049,84461.0,84450.0,0.00028817]
[1764605483694,0.67829975,84470.0,84450.0,0.00028817]
[1764605483695,0.03454,84451.0,84450.0,0.00028817]
[1764605483927,0.01184006,84459.0,84450.0,0.00028817]
[1764605484139,0.2368228,84452.0,84450.0,0.00028817]
[1764605484346,0.06098003,84451.0,84450.0,0.00028817]
[1764605484553,0.04999,84451.0,84450.0,0.00028817]
[1764605484759,0.06098003,84451.0,84450.0,0.00028817]
[1764605485199,0.06147003,84451.0,84450.0,0.00028817]
[1764605485406,2.04999,84451.0,84450.0,0.00028817]
[1764605485605,2.08642131,84451.0,84450.0,0.00028817]
[1764605485843,0.01184483,84425.0,84412.0,0.01896]
[1764605486055,0.01184483,84425.0,84412.0,0.00039105]
[1764605486056,0.03943,84413.0,84412.0,0.00039105]
[1764605486499,0.03943,84413.0,84412.0,0.00333668]
[1764605486706,0.03943,84413.0,84412.0,0.02736525]
[1764605486909,0.323,84422.0,84412.0,0.0392119]
[1764605486910,0.03943,84421.0,84412.0,0.0392119]
[1764605487115,0.03943,84421.0,84412.0,0.24916997]
[1764605487324,0.03943,84421.0,84414.0,0.01184637]
[1764605487535,0.03943,84421.0,84420.0,0.00268169]
[1764605487956,0.323,84429.0,84421.0,0.01184539]
[1764605488166,0.67829975,84440.0,84421.0,0.01184539]
[1764605488167,0.323,84437.0,84423.0,0.24874597]
[1764605488382,0.323,84437.0,84427.0,0.23689042]
[1764605488612,0.01184132,84450.0,84427.0,0.23689042]
[1764605488613,0.04140179,84469.0,84464.0,0.06252299]
[1764605488828,0.00025517,84494.0,84471.0,0.23676629]
[1764605489073,0.00025517,84494.0,84468.0,0.0118388]
[1764605489074,0.0495,84493.0,84468.0,0.0118388]
[1764605489289,0.00025517,84494.0,84463.0,0.04824]
[1764605489290,0.00025517,84494.0,84482.0,0.01183684]
[1764605489498,0.00025517,84494.0,84484.0,0.01183656]
[1764605489730,0.00037244,84494.0,84478.0,0.0308374]
[1764605489952,0.00037244,84494.0,84478.0,0.019]
[1764605489953,0.00347396,84492.0,84478.0,0.019]
[1764605490151,0.00037244,84494.0,84471.0,0.01183838]
[1764605490152,0.67829975,84490.0,84471.0,0.01183838]
[1764605490367,0.00347396,84482.0,84472.0,0.23676484]
[1764605490617,0.62105358,84489.0,84471.0,0.23676709]
[1764605490844,0.01183754,84477.0,84457.0,0.01184034]
[1764605491016,0.323,84474.0,84459.0,0.01184006]
[1764605491232,0.00347396,84464.0,84460.0,0.01183992]
[1764605491407,0.323,84474.0,84457.0,0.01184034]
[1764605491611,0.00347396,84468.0,84462.0,0.01183964]
[1764605492148,0.91503781,84482.0,84460.0,0.23679739]
[1764605492149,0.00347396,84470.0,84460.0,0.23679739]
[1764605492343,0.00347396,84470.0,84461.0,0.24863439]
[1764605492555,0.00347396,84470.0,84461.0,0.01183978]
[1764605492787,0.00347396,84474.0,84463.0,0.0118395]
[1764605492990,0.00347396,84464.0,84459.0,0.01184006]
[1764605493191,0.00347396,84464.0,84455.0,0.01184062]
[1764605493192,0.00347396,84464.0,84457.0,0.01184034]
[1764605493414,0.00347396,84464.0,84458.0,0.0118402]
[1764605493602,0.00347396,84464.0,84457.0,0.01184034]
[1764605493802,0.00347396,84464.0,84459.0,0.01184006]
[1764605494220,0.00347396,84464.0,84458.0,0.0118402]
[1764605494430,0.00011723,84474.0,84462.0,0.01183964]
[1764605494640,0.03983,84473.0,84458.0,0.0118402]
[1764605494844,0.323,84460.0,84440.0,0.01184272]
[1764605495055,0.00347396,84454.0,84448.0,0.0118416]
[1764605495272,0.00347396,84458.0,84446.0,0.24867845]
[1764605495489,0.23682133,84452.0,84433.0,0.01184371]
[1764605495694,0.00347396,84449.0,84439.0,0.23685695]
[1764605495917,0.00347396,84449.0,84440.0,0.01184272]
[1764605496134,0.00347396,84449.0,84439.0,0.01184286]
[1764605496334,0.00347396,84449.0,84441.0,0.01184258]
[1764605496621,0.00347396,84449.0,84440.0,0.01184272]
[1764605496824,0.323,84455.0,84441.0,0.01184258]
[1764605497031,0.323,84455.0,84450.0,0.01184132]
[1764605497251,0.00347396,84454.0,84443.0,0.0118423]
[1764605497450,0.00347396,84454.0,84434.0,0.01184357]
[1764605497655,0.00347396,84454.0,84439.0,0.23685661]
[1764605497860,0.01184076,84454.0,84438.0,0.24870139]
[1764605498070,0.323,84456.0,84438.0,0.011843]
[1764605498284,0.323,84456.0,84443.0,0.0118423]
[1764605498494,0.323,84456.0,84442.0,0.01184244]
[1764605498665,0.01531416,84458.0,84443.0,0.24868728]
[1764605498867,0.01531416,84458.0,84441.0,0.2368513]
[1764605498868,0.33484034,84457.0,84450.0,0.00169239]
[1764605499077,0.00347396,84453.0,84450.0,0.00169239]
[1764605499269,0.323,84457.0,84450.0,0.00169239]
[1764605499591,0.32647396,84457.0,84450.0,0.00169239]
[1764605499925,0.0118402,84458.0,84450.0,0.00169239]
[1764605500106,0.01531416,84458.0,84450.0,0.00169239]
[1764605500511,0.01184048,84456.0,84450.0,0.00169239]
[1764605501117,0.0495,84451.0,84450.0,0.00169239]
[1764605501427,0.05297396,84451.0,84450.0,0.00169239]
[1764605501750,2.37597396,84451.0,84450.0,0.00169239]
[1764605501881,2.39748166,84451.0,84450.0,0.00169239]
[1764605502104,2.40095562,84451.0,84450.0,0.00169239]
[1764605502308,0.34798166,84451.0,84450.0,0.00169239]
[1764605502742,2.40095562,84451.0,84450.0,0.00169239]
[1764605503716,2.39748166,84451.0,84450.0,0.00169239]
[1764605504178,2.40095562,84451.0,84450.0,0.00169239]
[1764605504550,2.41953532,84451.0,84450.0,0.00169239]
[1764605504984,2.41953532,84451.0,84434.0,0.24871438]
[1764605505184,0.323,84449.0,84435.0,0.23686859]
[1764605505342,0.00347396,84443.0,84435.0,0.01184342]
[1764605505543,0.02845562,84448.0,84442.0,0.00026366]
[1764605505950,0.02845562,84448.0,84447.0,0.23683493]
[1764605505951,0.02498166,84448.0,84447.0,0.23683493]
[1764605506166,0.323,84457.0,84451.0,0.01184118]
[1764605506362,0.01183894,84467.0,84445.0,0.01184202]
[1764605506363,0.01857805,84463.0,84445.0,0.01184202]
[1764605506569,0.01857805,84463.0,84444.0,0.01184216]
[1764605506570,0.01183978,84461.0,84444.0,0.01184216]
[1764605506781,0.323,84459.0,84445.0,0.01184202]
[1764605506986,0.05327396,84454.0,84445.0,0.01184202]
[1764605507160,0.05321396,84454.0,84445.0,0.01184202]
[1764605507383,0.04974,84454.0,84446.0,0.01184188]
[1764605507811,0.00347396,84456.0,84447.0,0.01184174]
[1764605508024,0.02500087,84458.0,84448.0,0.0118416]
[1764605508222,0.01047,84462.0,84445.0,0.24868244]
[1764605508223,0.01047,84462.0,84454.0,0.01184076]
[1764605508423,0.01047,84462.0,84455.0,0.01184062]
[1764605508645,0.01047,84462.0,84452.0,0.23682077]
[1764605508814,0.01047,84462.0,84454.0,0.01184076]
[1764605509422,0.01047,84462.0,84459.0,0.01184006]
[1764605509946,0.01047,84462.0,84455.0,0.01184062]
[1764605510172,0.02515,84467.0,84456.0,0.04704]
[1764605510387,0.02862396,84467.0,84456.0,0.04704]
[1764605510577,0.02862396,84467.0,84461.0,0.23679512]
[1764605510778,0.02515,84467.0,84462.0,0.01183964]
[1764605511114,0.0495,84459.0,84442.0,0.00026366]
[1764605511296,0.323,84459.0,84442.0,0.00026366]
[1764605511498,0.0118402,84458.0,84442.0,0.0121061]
[1764605511757,0.39751719,84458.0,84443.0,0.0118423]
[1764605511954,0.3843402,84458.0,84444.0,0.01184216]
[1764605512162,0.01184048,84456.0,84442.0,0.00026366]
[1764605512308,0.015315,84452.0,84442.0,0.00026366]
[1764605512515,0.00347396,84452.0,84442.0,0.00026366]
[1764605512720,0.323,84453.0,84442.0,0.0121061]
[1764605512924,0.323,84453.0,84443.0,0.24868605]
[1764605513140,0.323,84453.0,84444.0,0.01184216]
[1764605513345,0.02515,84452.0,84444.0,0.01184216]
[1764605513502,0.02515,84452.0,84444.0,0.24868539]
[1764605513708,0.02515,84452.0,84444.0,0.01184216]
[1764605513915,0.02515,84452.0,84445.0,0.01184202]
[1764605514561,0.02515,84452.0,84443.0,0.24868597]
[1764605514790,0.02515,84452.0,84442.0,0.00026366]
[1764605514935,0.03686825,84458.0,84442.0,0.00026366]
[1764605514936,0.01531416,84458.0,84443.0,0.0118423]
[1764605515141,1.37316499,84453.0,84442.0,0.00026366]
[1764605515453,1.14818754,84453.0,84442.0,0.00026366]
[1764605515654,0.00347396,84448.0,84442.0,0.00026366]
[1764605516285,0.0118416,84448.0,84442.0,0.00026366]
[1764605516486,0.00347396,84444.0,84442.0,0.00026366]
[1764605517488,0.323,84447.0,84442.0,0.00026366]
[1764605518081,0.01184132,84450.0,84442.0,0.00026366]
[1764605518285,0.0250476,84451.0,84442.0,0.00026366]
[1764605518488,0.323,84452.0,84444.0,0.01184216]
[1764605518689,0.323,84452.0,84442.0,0.0121061]
[1764605518690,0.323,84452.0,84442.0,0.24895465]
[1764605518864,0.323,84452.0,84443.0,0.0118423]
[1764605519097,0.323,84457.0,84444.0,0.23684334]
[1764605519302,0.02506139,84456.0,84445.0,0.01184202]
[1764605519479,0.02506139,84456.0,84444.0,0.01184216]
[1764605520236,0.02506139,84457.0,84444.0,0.248683]
[1764605520443,0.02506139,84457.0,84444.0,0.01184216]
[1764605520655,0.02506139,84457.0,84446.0,0.01184188]
[1764605520863,0.02506139,84457.0,84445.0,0.23683814]
[1764605520864,0.02506139,84457.0,84445.0,0.24868016]
[1764605521282,0.33483992,84460.0,84442.0,0.24895464]
[1764605521283,0.02506139,84459.0,84442.0,0.00026366]
[1764605521495,0.23682932,84449.0,84442.0,0.00026366]
[1764605521704,2.55984615,84443.0,84442.0,0.00026366]